Workbook

Sheet RCS-3
A1: Puget Sound Energy, Inc | I1: Exhibit No.__(RCS-03)
A2: Test Year Ending December 31, 2010 | I2: Page 1 of 1
A4: Adjustment to Reflect Impact of 2008 Tax Accounting Method Change for Repairs
A5: And Related Tax Accounting Method Change for Retirements
A8: Line | E8: Electric | G8: Gas | I8: Utility
A9: No. | C9: Description/Account | E9: Utility | G9: Utility | I9: Total
E10: (A) | G10: (B) | I10: (C)
A12: 1 | C12: ='Exhibit No. ___(MRM-7)'!U38 -> Account 282 Repairs | E12: ='Exhibit No. ___(MRM-7)'!V38 -> 41842224.61 | G12: ='Exhibit No. ___(MRM-7)'!W38 -> 24996849.28 | I12: =E12+G12 -> 66839073.89
A13: =A12+1 -> 2 | C13: ='Exhibit No. ___(MRM-7)'!U39 -> Account 282 Retirements | E13: ='Exhibit No. ___(MRM-7)'!V39 -> -427902.8062 | G13: ='Exhibit No. ___(MRM-7)'!W39 -> -432550.9003 | I13: =E13+G13 -> -860453.7065 | M13: cross foot | N13: difference
A14: =A13+1 -> 3 | C14: ='Exhibit No. ___(MRM-7)'!U40 -> Total Repairs/Retirements | E14: =SUM(E12:E13) -> 41414321.81 | G14: =SUM(G12:G13) -> 24564298.38 | I14: =SUM(I12:I13) -> 65978620.19 | M14: =E14+G14 -> 65978620.19 | N14: =M14-I14 -> 0
A16: =A14+1 -> 4 | C16: Account 282, Accumulated Deferred Income Taxes | E16: =E14 -> 41414321.81 | G16: =G14 -> 24564298.38 | I16: =I14 -> 65978620.19
A18: =A16+1 -> 5 | C18: Staff Adjustment (Decrease) to PSE's proposed Rate Base | E18: =-E16 -> -41414321.81 | G18: =-G16 -> -24564298.38 | I18: =-I16 -> -65978620.19
A21: Notes and Source
A22: PSE Exhibit No. ___(MRM-7) and related PSE workpapers
A23: This adjustment reflects the rate base impact for the amounts for repairs and retirements tax deductions that PSE has reflected on its books for the
A24: test year, on an average of monthly averages basis, as net credit balances in Account 282. PSE proposes to not deduct these known test year
A25: balances from rate base based on its position that an IRS audit of its repairs deductions for tax years 2008, 2009 and 2010 must first be completed
A26: before these amounts are recognized for ratemaking purposes. Account 282 balances for repairs deductions represent cost-free capital which
A27: should be deducted from PSE's rate base in the current case. Staff's adjustment treats the known and measurable rate base impacts occurring
A28: during the test year appropriately by deducting the Account 282 balances from rate base, whereas PSE's proposal does not.

Sheet Exhibit No. ___(MRM-7)
B2: A | C2: B | D2: C | E2: D | F2: E | G2: F | H2: G | I2: H | J2: I | K2: J | L2: K | M2: L | N2: M | O2: N | P2: O | Q2: P
B3: Account | C3: Account Description | D3: 2009-12-31 | E3: 2010-01-31 | F3: 2010-02-28 | G3: 2010-03-31 | H3: 2010-04-30 | I3: 2010-05-31 | J3: 2010-06-30 | K3: 2010-07-31 | L3: 2010-08-31 | M3: 2010-09-30 | N3: 2010-10-31 | O3: 2010-11-30 | P3: 2010-12-31 | Q3: AMA (Dec-10)
A4: 1 | B4: Actual SAP Balances
A5: 3 | B5: 19000433 | C5: NOL Carryforward | D5: 0 | E5: 0 | F5: 0 | G5: 0 | H5: 0 | I5: 0 | J5: 0 | K5: 0 | L5: 0 | M5: 70817091.53 | N5: 70817091.53 | O5: 70817091.53 | P5: 98908317.53 | Q5: =SUM(D5+P5+SUM(E5:O5)*2)/24 -> 21825452.78
A6: 4 | B6: 23600033 | C6: Federal Income Taxes Payable | D6: 98112731.53 | E6: 92228778.53 | F6: 72430586.18 | G6: 66949893.18 | H6: 66533456.18 | I6: 64798721.69 | J6: 84598984.04 | K6: 85402640.04 | L6: 93450728.04 | M6: 57043858.53 | N6: 58417376.76 | O6: 49481109.51 | P6: 60744622.51 | Q6: =SUM(D6+P6+SUM(E6:O6)*2)/24 -> 72563734.14
A7: 5 | B7: 28200002 | C7: DFIT - Gas Plant | D7: -286369100.7 | E7: -287499100.7 | F7: -288634100.7 | G7: -289543100.7 | H7: -290599100.7 | I7: -291631100.7 | J7: -292311100.7 | K7: -293301100.7 | L7: -294291100.7 | M7: -307378217.7 | N7: -308981767.7 | O7: -310585317.7 | P7: -330789143.7 | Q7: =SUM(D7+P7+SUM(E7:O7)*2)/24 -> -296944519.2
A8: 6 | B8: 28200121 | C8: DFIT - Electric Plant | D8: -726234885.4 | E8: -729898885.4 | F8: -733562885.4 | G8: -736902981.4 | H8: -742864585.4 | I8: -746592690.4 | J8: -753833489.4 | K8: -758031935.4 | L8: -762230381.4 | M8: -814719157.4 | N8: -823429880.4 | O8: -832140603.4 | P8: -848068474.4 | Q8: =SUM(D8+P8+SUM(E8:O8)*2)/24 -> -768446596.3
A9: 7 | B9: subtotal | D9: =SUM(D5:D8) -> -914491254.6 | E9: -925169207.6 | F9: -949766399.9 | G9: -959496188.9 | H9: -966930229.9 | I9: -973425069.4 | J9: -961545606 | K9: -965930396 | L9: -963070754 | M9: -994236425 | N9: -1003177180 | O9: -1022427720 | P9: -1019204678 | Q9: =SUM(Q5:Q8) -> -971001928.6
A10: 8
A11: 9 | B11: STEP 1: Extract the NOL C/F from the Tax Payable/Receivable Account and Restate Both Balances
A12: 10 | B12: Reconstruct the Tax Payable Balance for 2010
A13: 11 | B13: 23600033 | C13: Federal Income Taxes Payable ORIGINAL | D13: 98112731.53 | E13: 92228778.53 | F13: 72430586.18 | G13: 66949893.18 | H13: 66533456.18 | I13: 64798721.69 | J13: 84598984.04 | K13: 85402640.04 | L13: 93450728.04 | M13: 57043858.53 | N13: 58417376.76 | O13: 49481109.51 | P13: 60744622.51
A14: 12 | B14: 23600033 | C14: Federal Income Taxes Payable REVISED | D14: 98112731.53 | E14: =+D14-32330860+E13-D13 -> 59897918.53 | F14: =+E14+F13-E13 -> 40099726.18 | G14: 34619033.18 | H14: 34202596.18 | I14: 32467861.69 | J14: 52268124.04 | K14: 53071780.04 | L14: 61119868.04 | M14: 60744623 | N14: =+M14 -> 60744623 | O14: =+N14 -> 60744623 | P14: =+O14 -> 60744623
A15: 13 | B15: Difference is activity to the NOL in 2010 | D15: =+D13-D14 -> 0 | E15: 32330860 | F15: 32330860 | G15: 32330860 | H15: 32330860 | I15: 32330860 | J15: 32330860 | K15: 32330860 | L15: 32330860 | M15: -3700764.47 | N15: -2327246.24 | O15: -11263513.49 | P15: -0.4900000021
A16: 14
A17: 15 | B17: 19000433 | C17: NOL Carryforward ORIGINAL | D17: 0 | E17: 0 | F17: 0 | G17: 0 | H17: 0 | I17: 0 | J17: 0 | K17: 0 | L17: 0 | M17: 70817091.53 | N17: 70817091.53 | O17: 70817091.53 | P17: 98908317.53
A18: 16 | B18: Difference from the Taxes Payable | D18: =+D15 -> 0 | E18: 32330860 | F18: 32330860 | G18: 32330860 | H18: 32330860 | I18: 32330860 | J18: 32330860 | K18: 32330860 | L18: 32330860 | M18: -3700764.47 | N18: -2327246.24 | O18: -11263513.49 | P18: -0.4900000021
A19: 17 | B19: 19000433 | C19: NOL Carryforward REVISED | D19: =SUM(D17:D18) -> 0 | E19: 32330860 | F19: 32330860 | G19: 32330860 | H19: 32330860 | I19: 32330860 | J19: 32330860 | K19: 32330860 | L19: 32330860 | M19: 67116327.06 | N19: 68489845.29 | O19: 59553578.04 | P19: 98908317.04
A20: 18
A21: 19 | B21: STEP 2: Adjust NOL Carryforward to Remove Repairs/Reirement Method Changes
A22: 20 | B22: 19000433 | C22: NOL Carryforward REVISED | D22: =+D19 -> 0 | E22: 32330860 | F22: 32330860 | G22: 32330860 | H22: 32330860 | I22: 32330860 | J22: 32330860 | K22: 32330860 | L22: 32330860 | M22: 67116327.06 | N22: 68489845.29 | O22: 59553578.04 | P22: 98908317.04
A23: 21
A24: 22 | B24: Remove Repairs | E24: -248000 | F24: -496000 | G24: -744000 | H24: -992000 | I24: -1240000 | J24: -1488000 | K24: -1736000 | L24: -1984000 | M24: -1046334.95 | N24: -1161993.5 | O24: -1277652.05 | P24: -531293.15 | Q24: =SUM(D24+P24+SUM(E24:O24)*2)/24 -> -1056635.59
A25: 23 | B25: Remove Retirements | G25: 546875 | H25: 729166.55 | I25: 772948.75 | J25: 927538.5204 | K25: 1082128.291 | L25: 1236718.061 | M25: 1391307.832 | N25: 1545897.602 | O25: 1700487.372 | P25: 784753 | Q25: 860453.7065
A26: 24 | B26: Total Repairs/Retirements Removed | D26: =SUM(D24:D25) -> 0 | E26: -248000 | F26: -496000 | G26: -197125 | H26: -262833.45 | I26: -467051.25 | J26: -560461.4796 | K26: -653871.7092 | L26: -747281.9388 | M26: 344972.8816 | N26: 383904.102 | O26: 422835.3224 | P26: 253459.85 | Q26: -196181.8831
A27: 25 | B27: 19000433 | C27: NOL Carryforward | D27: =+D22+D26 -> 0 | E27: 32082860 | F27: 31834860 | G27: 32133735 | H27: 32068026.55 | I27: 31863808.75 | J27: 31770398.52 | K27: 31676988.29 | L27: 31583578.06 | M27: 67461299.94 | N27: 68873749.39 | O27: 59976413.36 | P27: 99161776.89
A28: 26
A29: 27 | B29: STEP 3: Adjust Taxes Payable Balance to Remove Repirs/Retirements Method Changes
A30: 28 | B30: 23600033 | C30: Federal Income Taxes (from above) | D30: =+D14 -> 98112731.53 | E30: 59897918.53 | F30: 40099726.18 | G30: 34619033.18 | H30: 34202596.18 | I30: 32467861.69 | J30: 52268124.04 | K30: 53071780.04 | L30: 61119868.04 | M30: 60744623 | N30: 60744623 | O30: 60744623 | P30: 60744623
A31: 29
A32: 30 | B32: Remove Repairs | D32: -19046784.4 | E32: -19046784.4 | F32: -2969498.396 | G32: -2969498.396 | H32: -2969498.396 | I32: -2969498.396 | J32: -2969498.396 | K32: -2969498.396 | L32: -2969498.396 | M32: -3514566.696 | N32: -3514566.696 | O32: -3514566.696 | P32: -3514566.696 | Q32: =SUM(D32+P32+SUM(E32:O32)*2)/24 -> -5138137.4
A33: 31 | B33: Remove Retirements | G33: 0 | H33: 0 | I33: 0 | J33: 0 | K33: 0 | L33: 0 | M33: 0 | N33: 0 | O33: 0 | P33: 0 | Q33: 0
A34: 32 | B34: Total Repairs/Retirements Removed | D34: =SUM(D32:D33) -> -19046784.4 | E34: -19046784.4 | F34: -2969498.396 | G34: -2969498.396 | H34: -2969498.396 | I34: -2969498.396 | J34: -2969498.396 | K34: -2969498.396 | L34: -2969498.396 | M34: -3514566.696 | N34: -3514566.696 | O34: -3514566.696 | P34: -3514566.696 | Q34: -5138137.4
A35: 33 | B35: 23600033 | C35: Federal Income Taxes | D35: =+D30+D34 -> 79065947.13 | E35: 40851134.13 | F35: 37130227.78 | G35: 31649534.78 | H35: 31233097.78 | I35: 29498363.29 | J35: 49298625.64 | K35: 50102281.64 | L35: 58150369.64 | M35: 57230056.3 | N35: 57230056.3 | O35: 57230056.3 | P35: 57230056.3 | U35: Increase (Reduction) to ADIT/Reduction (Increase) to Rate Base
A36: 34 | U36: From Tax Accounting Method Changes for Repairs and Retirements
A37: 35 | B37: STEP 4: Remove Repairs/Retirement Changes from Electric Deferred Tax Balance | V37: Electric | W37: Gas | X37: Total
A38: 36 | B38: Remove Repairs - Electric | D38: 41211889.9 | E38: 41330889.9 | F38: 41449889.9 | G38: 41568889.9 | H38: 41687889.9 | I38: 41806889.9 | J38: 41925889.9 | K38: 42044889.9 | L38: 42163889.9 | M38: 42156185.7 | N38: 42208219 | O38: 42260250.5 | P38: 41793952 | Q38: =SUM(D38+P38+SUM(E38:O38)*2)/24 -> 41842224.61 | U38: Account 282 Repairs | V38: =Q38 -> 41842224.61 | W38: =V43 -> 24996849.28 | X38: =V38+W38 -> 66839073.89 | Z38: =V38/(10^6) -> 41.84222461
A39: 37 | B39: Remove Retirements - Electric | G39: -323904 | H39: -431872 | I39: -367767.4 | J39: -441320.894 | K39: -514874.3881 | L39: -588427.8821 | M39: -661981.3761 | N39: -735534.8702 | O39: -809088.3642 | P39: -520125 | Q39: -427902.8062 | U39: Account 282 Retirements | V39: =Q39 -> -427902.8062 | W39: =V44 -> -432550.9003 | X39: =V39+W39 -> -860453.7065
A40: 38 | B40: Total Repairs/Retirements Removed | D40: =SUM(D38:D39) -> 41211889.9 | E40: 41330889.9 | F40: 41449889.9 | G40: 41244985.9 | H40: 41256017.9 | I40: 41439122.5 | J40: 41484569.01 | K40: 41530015.51 | L40: 41575462.02 | M40: 41494204.32 | N40: 41472684.13 | O40: 41451162.14 | P40: 41273827 | Q40: 41414321.81 | U40: Total Repairs/Retirements | V40: 41414321.81 | W40: =SUM(W38:W39) -> 24564298.38 | X40: =SUM(X38:X39) -> 65978620.19
A41: 39 | B41: 28200121 | C41: DFIT - Electric Plant | D41: =+D8+D40 -> -685022995.5 | E41: -688567995.5 | F41: -692112995.5 | G41: -695657995.5 | H41: -701608567.5 | I41: -705153567.9 | J41: -712348920.4 | K41: -716501919.9 | L41: -720654919.4 | M41: -773224953.1 | N41: -781957196.3 | O41: -790689441.3 | P41: -806794647.4
A42: 40 | U42: Gas Utility Increase (Reduction) to ADIT/Reduction to Rate Base
A43: 41 | B43: STEP 5: Remove Repairs/Retirement Changes from Gas Deferred Tax Balance | U43: Account 282 Repairs - Gas | V43: =Q44 -> 24996849.28
A44: 42 | B44: Remove Repairs - Gas | D44: 24411570.05 | E44: 24540570.05 | F44: 24669570.05 | G44: 24798570.05 | H44: 24927570.05 | I44: 25056570.05 | J44: 25185570.05 | K44: 25314570.05 | L44: 25443570.05 | M44: 25058677.5 | N44: 25122303.65 | O44: 25185929.8 | P44: 24905870 | Q44: =SUM(D44+P44+SUM(E44:O44)*2)/24 -> 24996849.28 | U44: Account 282 Retirements - Gas | V44: =Q45 -> -432550.9003 | Z44: =V43/(10^6) -> 24.99684928
A45: 43 | B45: Remove Retirements - Gas | G45: -222971 | H45: -297294.55 | I45: -405181.35 | J45: -486217.6264 | K45: -567253.9027 | L45: -648290.1791 | M45: -729326.4554 | N45: -810362.7318 | O45: -891399.0081 | P45: -264628 | Q45: -432550.9003 | U45: Total Repairs/Retirements - Gas | V45: =Q46 -> 24564298.38
A46: 44 | B46: Total Repairs/Retirements Removed | D46: =SUM(D44:D45) -> 24411570.05 | E46: 24540570.05 | F46: 24669570.05 | G46: 24575599.05 | H46: 24630275.5 | I46: 24651388.7 | J46: 24699352.42 | K46: 24747316.15 | L46: 24795279.87 | M46: 24329351.04 | N46: 24311940.92 | O46: 24294530.79 | P46: 24641242 | Q46: 24564298.38
A47: 45 | B47: 28200002 | C47: DFIT - Gas Plant | D47: =+D7+D44+D45 -> -261957530.6 | E47: -262958530.6 | F47: -263964530.6 | G47: -264967501.6 | H47: -265968825.2 | I47: -266979712 | J47: -267611748.2 | K47: -268553784.5 | L47: -269495820.8 | M47: -283048866.6 | N47: -284669826.8 | O47: -286290786.9 | P47: -306147901.7
A48: 46
A49: 52
A50: 53 | B50: Revised Balances
A51: 55 | B51: 19000433 | C51: NOL Carryforward | D51: =+D27 -> 0 | E51: =+E27 -> 32082860 | F51: =+F27 -> 31834860 | G51: 32133735 | H51: 32068026.55 | I51: 31863808.75 | J51: 31770398.52 | K51: 31676988.29 | L51: 31583578.06 | M51: 67461299.94 | N51: 68873749.39 | O51: 59976413.36 | P51: 99161776.89 | Q51: =SUM(D51+P51+SUM(E51:O51)*2)/24 -> 41742217.19 | R51: a
A52: 56 | B52: 19000433.1 | C52: NOL Carryforward Repairs/Retirement | D52: =-D26 -> 0 | E52: =-E26 -> 248000 | F52: =-F26 -> 496000 | G52: 197125 | H52: 262833.45 | I52: 467051.25 | J52: 560461.4796 | K52: 653871.7092 | L52: 747281.9388 | M52: -344972.8816 | N52: -383904.102 | O52: -422835.3224 | P52: -253459.85 | Q52: 196181.8831
A53: 57 | B53: 23600033 | C53: Accrued Federal Income Taxes Payable | D53: =+D35 -> 79065947.13 | E53: =+E35 -> 40851134.13 | F53: 37130227.78 | G53: 31649534.78 | H53: 31233097.78 | I53: 29498363.29 | J53: 49298625.64 | K53: 50102281.64 | L53: 58150369.64 | M53: 57230056.3 | N53: 57230056.3 | O53: 57230056.3 | P53: 57230056.3 | Q53: 47312650.45 | R53: b
A54: 58 | B54: 23600033.1 | C54: Federal Income Taxes Repairs/Retiremnt | D54: =-D34 -> 19046784.4 | E54: =-E34 -> 19046784.4 | F54: 2969498.396 | G54: 2969498.396 | H54: 2969498.396 | I54: 2969498.396 | J54: 2969498.396 | K54: 2969498.396 | L54: 2969498.396 | M54: 3514566.696 | N54: 3514566.696 | O54: 3514566.696 | P54: 3514566.696 | Q54: 5138137.4
A55: 59 | B55: 28200002 | C55: DFIT - Gas Plant | D55: =+D47 -> -261957530.6 | E55: =+E47 -> -262958530.6 | F55: -263964530.6 | G55: -264967501.6 | H55: -265968825.2 | I55: -266979712 | J55: -267611748.2 | K55: -268553784.5 | L55: -269495820.8 | M55: -283048866.6 | N55: -284669826.8 | O55: -286290786.9 | P55: -306147901.7 | Q55: -272380220.8 | R55: a
A56: 60 | B56: 28200002.1 | C56: DFIT - Gas Plant Repairs/Retirement | D56: =-D46 -> -24411570.05 | E56: =-E46 -> -24540570.05 | F56: -24669570.05 | G56: -24575599.05 | H56: -24630275.5 | I56: -24651388.7 | J56: -24699352.42 | K56: -24747316.15 | L56: -24795279.87 | M56: -24329351.04 | N56: -24311940.92 | O56: -24294530.79 | P56: -24641242 | Q56: -24564298.38 | R56: c
A57: 61 | B57: 28200121 | C57: DFIT - Electric Plant | D57: =+D41 -> -685022995.5 | E57: =+E41 -> -688567995.5 | F57: -692112995.5 | G57: -695657995.5 | H57: -701608567.5 | I57: -705153567.9 | J57: -712348920.4 | K57: -716501919.9 | L57: -720654919.4 | M57: -773224953.1 | N57: -781957196.3 | O57: -790689441.3 | P57: -806794647.4 | Q57: -727032274.5 | R57: a
A58: 62 | B58: 28200121.1 | C58: DFIT - Electric Plant Repairs/Retirement | D58: =-D40 -> -41211889.9 | E58: =-E40 -> -41330889.9 | F58: -41449889.9 | G58: -41244985.9 | H58: -41256017.9 | I58: -41439122.5 | J58: -41484569.01 | K58: -41530015.51 | L58: -41575462.02 | M58: -41494204.32 | N58: -41472684.13 | O58: -41451162.14 | P58: -41273827 | Q58: -41414321.81 | R58: c
A59: 63 | D59: =SUM(D50:D58) -> -914491254.6 | E59: =SUM(E50:E58) -> -925169207.6 | F59: -949766399.9 | G59: -959496188.9 | H59: -966930229.9 | I59: -973425069.4 | J59: -961545606 | K59: -965930396 | L59: -963070754 | M59: -994236425 | N59: -1003177180 | O59: -1022427720 | P59: -1019204678 | Q59: =SUM(Q50:Q58) -> -971001928.6
A60: 64 | B60: Net Difference | D60: =+D9-D59 -> 0 | E60: 0 | F60: 0 | G60: 0 | H60: 0 | I60: 0 | J60: 0 | K60: 0 | L60: 0 | M60: 0 | N60: 0 | O60: 0 | P60: 0
B63: ADIT Deferred Taxes reflected in rate base by PSE | Q63: =Q57+Q55+Q51 -> -957670278.1 | R63: a
B64: Debit balance in account 236 reflected by PSE as a rate base addition for working capital | Q64: =Q53 -> 47312650.45 | R64: b
B66: Staff recommended rate base adjustments:
B67: Reflect ADIT in account 282 related to repairs and retirements | Q67: =Q58+Q56 -> -65978620.19 | R67: c
B68: Remove debit balance in account 236 reflected by PSE as a rate base addition for working capital | Q68: =-Q64 -> -47312650.45 | R68: -b
